Cogmind - Beta 13 @@@ ROGUE MODE // 2024.03.13 @ 16:12:41 Player: Oldman Pu Result: Destroyed by AJ-YEC(R) with Subdweller Laser Performance ------------- Evolutions (0) 0 Regions Visited (3) 600 Robots Destroyed (30) 150 Value Destroyed (677) 677 Prototype IDs (1) 20 Alien Tech Used (0) 0 Bonus (-211) -211 TOTAL SCORE: 1236 Bonus ------- Follower Combat Kills 50 Friendly Fire -261 Cogmind --------- Core Integrity 0/250 Matter 204/300 Energy 250/250 System Corruption 0% Temperature Cool (6) Movement Rolling (120) Ox1 Location -10/Subcaves Parts ------- > --- POWER (1) -------- Ion Engine > --- PROPULSION (2) --- Subdweller Monowheel Subdweller Monowheel > --- UTILITY (2) ------ High-capacity Storage Unit Light Armor Plating > --- WEAPON (2) ------- Autogun Autogun > --- INVENTORY (20) --- Ion Engine Ion Engine Light Nuclear Core Light Nuclear Core Aluminum Leg Heat Sink Improved Heat Sink Improved Heat Sink Medium Battery (150) High-capacity Matter Pod (200) Targeting Computer Targeting Computer Sensor Drone Bay (5/20) Beamcaster Beamcaster Assault Rifle Autogun Autogun Barrage Gun Battle Cannon Peak State ------------ > --- POWER ------------ Ion Engine > --- PROPULSION ------- Aluminum Leg Aluminum Leg > --- UTILITY ---------- High-capacity Storage Unit Sensor Drone Bay > --- WEAPON ----------- Light Assault Rifle Light Cannon > --- INVENTORY -------- Ion Engine Ion Engine Light Nuclear Core Light Nuclear Core Heat Sink Improved Heat Sink Medium Battery High-capacity Matter Pod Targeting Computer Targeting Computer Light Armor Plating Beamcaster Assault Rifle Autogun Autogun Autogun Autogun [Rating: 17] Favorites ----------- Power Ion Engine Engine Ion Engine Propulsion Aluminum Leg Leg Aluminum Leg Wheel Compact Wheel Utility High-capacity Storage Unit Device Sensor Drone Bay Storage High-capacity Storage Unit Processor Targeting Computer Protection Light Armor Plating Weapon Assault Rifle Ballistic Gun Assault Rifle Ballistic Cannon Light Cannon Build | -11 -10 -10 -10 ------- Run | Yrd Mat Min Sub Slots Evolved . | . . . . Power . | . . . . Propulsion . | . . . . Utility . | . . . . Weapon . | . . . . Parts Attached 26 | 7 8 5 6 Power 4 | 1 3 . . Engine 4 | 1 3 . . Core . | . . . . Reactor . | . . . . Propulsion 8 | 2 1 2 3 Treads . | . . . . Leg 2 | . . 2 . Wheel 6 | 2 1 . 3 Hover . | . . . . Flight . | . . . . Utility 6 | 1 3 2 . Device 2 | . 1 1 . Storage 2 | 1 1 . . Processor 1 | . 1 . . Hackware . | . . . . Protection 1 | . . 1 . Artifact . | . . . . Weapon 8 | 3 1 1 3 Energy Gun . | . . . . Energy Cannon . | . . . . Ballistic Gun 7 | 3 1 . 3 Ballistic Cannon 1 | . . 1 . Launcher . | . . . . Special Weapon . | . . . . Impact Weapon . | . . . . Slashing Weapon . | . . . . Piercing Weapon . | . . . . Special Melee Weapon . | . . . . Unidentified Prototypes 1 | . . 1 . Parts Lost 5 | . 2 3 . Power . | . . . . Propulsion 3 | . 1 2 . Utility . | . . . . Weapon 2 | . 1 1 . Highest Loss Streak 2 | . 1 2 . To Critical Strikes . | . . . . Average Slot Usage (%) 98 | . 94 99 100 Engine 14 | . 14 14 14 Leg 15 | . . 21 25 Wheel 11 | . 24 6 2 Storage 14 | . 14 14 14 Processor 6 | . 11 5 . Protection 5 | . . 6 14 Ballistic Gun 19 | . 27 16 15 Ballistic Cannon 8 | . . 11 12 Naked Turns . | . . . . Heaviest Build 63 | 12 49 63 54 Greatest Support 40 | 26 26 26 40 Greatest Overweight (x) 16 | . 3 16 2 Average Overweight (x) 1 | . 1 1 1 Largest Inventory Capacity 20 | 8 20 20 20 Average Capacity 19 | 7 18 20 20 Most Carried 20 | 2 14 19 20 Average Carried 15 | . 10 17 19 Final Capacity 20 | 8 20 20 20 Final Carried 20 | 2 14 19 20 Class Distribution -------------------- 100% | Mutant Dominant Class ---------------- Mutant | -10/Materials Mutant | -10/Mines Mutant | -10/Subcaves Resources | -11 -10 -10 -10 ----------- Run | Yrd Mat Min Sub Matter Collected 1020 | 235 389 324 72 Remotely . | . . . . Salvage Created 880 | . 530 291 59 Parts 56 | . 35 17 4 Haulers Intercepted 2 | . 2 . . Recyclers Shooed . | . . . . Parts Field Recycled . | . . . . Retrieved Matter . | . . . . Parts Self-Destructed 12 | . . . 12 Prevented . | . . . . Kills | -11 -10 -10 -10 ------- Run | Yrd Mat Min Sub Combat Hostiles Destroyed 24 | . 11 10 3 Guns 16 | . 11 4 1 Cannons 8 | . . 6 2 Classes Destroyed 7 | . 5 1 1 Worker 1 | . 1 . . Hauler 2 | . 2 . . Drone 1 | . . 1 . Watcher 2 | . 2 . . Swarmer 10 | . 4 5 1 Grunt 13 | . 7 6 . Subdweller 2 | . . . 2 Best Kill Streak 3 | . 3 3 2 Combat Bots Only 3 | . 3 3 2 Max Kills in Single Turn 2 | . 1 2 1 Gunslinging . | . . . . Exploded . | . . . . Melee . | . . . . Uniques/NPCs Destroyed . | . . . . Combat | -11 -10 -10 -10 -------- Run | Yrd Mat Min Sub Hostile Shots Fired 116 | . 52 30 34 Missed 25 | . 11 5 9 Damage Taken 1071 | . 419 279 373 Core 264 | . 91 66 107 Absorbed by Shields . | . . . . Core Remaining (%) 100 | 100 . . . Volleys Fired 88 | . 46 27 15 Largest 2 | . 2 2 2 Hottest 55 | . 40 55 55 Shots Fired 171 | . 89 52 30 Gun 142 | . 89 35 18 Cannon 29 | . . 17 12 Launcher . | . . . . Special . | . . . . Kinetic 171 | . 89 52 30 Thermal . | . . . . Explosive . | . . . . Electromagnetic . | . . . . Robot Hit Streak 11 | . 11 5 11 Robot Miss Streak 5 | . 5 3 2 Penetration Max . | . . . . Secondary Targets 5 | . 3 2 . Max Gunslinging Chain 1 | . 1 1 . Shots Hit Robots 105 | . 54 27 24 Core Hits 48 | . 26 17 5 Critical Kills . | . . . . Critical Parts Destroyed . | . . . . Critical Strikes 2 | . . 1 1 Blast 2 | . . 1 1 Melee Attacks . | . . . . Impact . | . . . . Slashing . | . . . . Piercing . | . . . . Sneak Attacks . | . . . . Combat Hostiles . | . . . . Follow-up Attacks . | . . . . Damage Inflicted 1373 | . 646 441 286 Guns 905 | . 646 151 108 Cannons 468 | . . 290 178 Explosions . | . . . . Melee . | . . . . Ramming . | . . . . Kinetic 1373 | . 646 441 286 Thermal . | . . . . Explosive . | . . . . Electromagnetic . | . . . . Impact . | . . . . Slashing . | . . . . Piercing . | . . . . Highest Corruption . | . . . . Average Corruption . | . . . . Corruption Purged . | . . . . Corruption Blocked . | . . . . Overload Shots . | . . . . Overflow Damage . | . . . . Projectiles . | . . . . Explosions . | . . . . Melee . | . . . . Knockbacks 3 | . . 1 2 Impact . | . . . . Kinetic 3 | . . 1 2 Secondary . | . . . . Self-Inflicted Damage . | . . . . Shots . | . . . . Rammed 1 | . 1 . . Targets Rammed 1 | . 1 . . Kicked . | . . . . Crushed . | . . . . Highest Temperature 55 | . 10 55 . Average Temperature 19 | . 5 21 . Received Heat Transfer 324 | . 150 72 102 Siege Activations . | . . . . Robots Corrupted . | . . . . Combat Hostiles . | . . . . Parts Fried . | . . . . Impact Corruptions . | . . . . Robots Melted . | . . . . Combat Hostiles . | . . . . Parts Melted 1 | . . 1 . Heat Transferred . | . . . . Parts Sabotaged . | . . . . Parts Stolen . | . . . . Parts Stripped . | . . . . Power Chain Reactions . | . . . . Alert | -11 -10 -10 -10 ------- Run | Yrd Mat Min Sub Peak Influence 244 | . 244 167 . Initial 4 | . . 4 . Average 48 | . 95 23 . Maximum Alert Level 1 | . 1 . . Low Security (%) 99 | 100 98 100 . Level 1 . | . 1 . . Level 2 . | . . . . Level 3 . | . . . . Level 4 . | . . . . Level 5 . | . . . . High Security . | . . . . Max Security . | . . . . Squads Dispatched 2 | . 2 . . Investigation . | . . . . Extermination . | . . . . Reinforcement 2 | . 2 . . Assault . | . . . . Garrison . | . . . . Intercept . | . . . . Searches Triggered . | . . . . Construction Impeded . | . . . . Haulers Reinforced . | . . . . Active Scanning Responses . | . . . . Cargo Convoy Interrupts . | . . . . Stealth | -11 -10 -10 -10 --------- Run | Yrd Mat Min Sub Distress Signals 1 | . 1 . . Communications Jammed . | . . . . Distress Signals . | . . . . Times Spotted 41 | . 18 13 10 Peak Tracking Total 3 | . 3 3 3 Tactical Retreats 2 | . . 1 1 Traps | -11 -10 -10 -10 ------- Run | Yrd Mat Min Sub Traps Triggered 1 | . . 1 . Indirectly . | . . . . Trap Hack Attempts . | . . . . Triggered . | . . . . Disarmed . | . . . . Reprogrammed . | . . . . Reused . | . . . . Traps Extracted . | . . . . Installed . | . . . . Triggered . | . . . . Machines | -11 -10 -10 -10 ---------- Run | Yrd Mat Min Sub Machines Disabled . | . . . . Max in Single Turn . | . . . . Machines Repaired . | . . . . Machines Dismantled . | . . . . Machines Sabotaged . | . . . . Overloaded Fab Kills . | . . . . Hacking | -11 -10 -10 -10 --------- Run | Yrd Mat Min Sub Machines Accessed 8 | . 6 2 . Terminals 5 | . 5 . . Fabricators . | . . . . Repair Stations . | . . . . Recycling Units 1 | . 1 . . Scanalyzers . | . . . . Garrison Access . | . . . . Total Hacks 19 | . 17 2 . Successful 14 | . 12 2 . Failed 5 | . 5 . . Catastrophic . | . . . . Database Lockouts . | . . . . Manual . | . . . . Terminals 15 | . 15 . . Fabricators . | . . . . Repair Stations . | . . . . Recycling Units 2 | . 2 . . Scanalyzers . | . . . . Garrison Access . | . . . . Terminal Hacks 12 | . 10 2 . Record 3 | . 3 . . Robot Analysis 1 | . 1 . . Open Door 2 | . . 2 . Branch Access Points 1 | . 1 . . Emergency Access Points 1 | . 1 . . Locate Traps 1 | . 1 . . Maintenance Status 1 | . 1 . . Hauler Manifests 1 | . 1 . . Zone Layout 1 | . 1 . . Fabricator Hacks . | . . . . Repair Station Hacks . | . . . . Recycling Unit Hacks 2 | . 2 . . Report Inventory 2 | . 2 . . Scanalyzer . | . . . . Garrison Access Hacks . | . . . . Unauthorized Hacks . | . . . . Terminals . | . . . . Fabricators . | . . . . Repair Stations . | . . . . Recycling Units . | . . . . Scanalyzers . | . . . . Garrison Access . | . . . . Data Cores Recovered . | . . . . Used . | . . . . Hacking Detections 2 | . 2 . . Full Trace Events . | . . . . Feedback Events . | . . . . Feedback Blocked . | . . . . Robot Schematics Acquired . | . . . . Robots Built . | . . . . Authchips . | . . . . Time . | . . . . Total Robot Build Rating . | . . . . Part Schematics Acquired . | . . . . Parts Built . | . . . . Authchips . | . . . . Time . | . . . . Total Part Build Rating . | . . . . Parts Repaired . | . . . . Time . | . . . . Parts Recycled . | . . . . Recycled Matter . | . . . . Retrieved Matter . | . . . . Retrieved Components . | . . . . Parts Scanalyzed . | . . . . Part Schematics Acquired . | . . . . Parts Damaged . | . . . . Bothacking | -11 -10 -10 -10 ------------ Run | Yrd Mat Min Sub Used RIF Installer . | . . . . Robots Hacked . | . . . . Non-combat . | . . . . Combat . | . . . . Robot Hacks Applied . | . . . . Relay Couplers Released . | . . . . Fabnet Peak Effective % . | . . . . Robots Rewired . | . . . . Allies Hacked . | . . . . Hacks Repelled . | . . . . Allies | -11 -10 -10 -10 -------- Run | Yrd Mat Min Sub Total Allies 5 | . . 5 . Largest Group 5 | . . 5 . Highest-Rated Group 82 | . . 82 . Highest-Rated Ally 31 | . . 31 . Total Orders . | . . . . Ally Attacks 34 | . . 34 . Total Damage 363 | . . 363 . Kills 2 | . . 2 . Allies Corrupted . | . . . . Allies Melted . | . . . . Intel | -11 -10 -10 -10 ------- Run | Yrd Mat Min Sub Robot Analysis Total 1 | . 1 . . Derelict Logs Recovered 3 | . . 2 1 Drone Launches 20 | . . 20 . Drone Recoveries 5 | . . 5 . Exploration | -11 -10 -10 -10 ------------- Run | Yrd Mat Min Sub Turns Passed 3154 | 44 924 1650 536 Spaces Moved 1609 | 39 668 706 196 Core 10 | 9 . 1 . Treads . | . . . . Legs 612 | . . 445 167 Wheels 987 | 30 668 260 29 Hover . | . . . . Flight . | . . . . Fastest Speed 50 | 50 90 105 120 Average Speed 167 | 80 109 207 239 Slowest Speed 850 | 90 145 850 260 Overloaded Moves . | . . . . Propulsion Burnouts . | . . . . Robots Hopped . | . . . . Cave-ins Triggered . | . . . . Exploration Rate (%) 53 | 3 96 100 13 Regions Visited 3 Branch Regions 2 Pre-discovered Areas . | . . . . Known Exits Taken 1 | . 1 . . Unknown Exits Taken 2 | 1 . 1 . Scrap Searched 3 | . . 1 2 Spaces Dug . | . . . . Terrain Destroyed . | . . . . Melee . | . . . . Projectile . | . . . . AOE . | . . . . Terrain Rammed . | . . . . Walls Destroyed . | . . . . Machines Disabled . | . . . . Actions | -11 -10 -10 -10 --------- Run | Yrd Mat Min Sub Total 1900 | 48 775 843 234 Wait 140 | . 34 97 9 Move 1606 | 38 667 705 196 Hop . | . . . . Pick Up 29 | 3 15 7 4 Fast Attach 9 | 5 2 2 . Attach 4 | 1 2 1 . Detach . | . . . . Swap 13 | 1 4 2 6 Drop 8 | . 4 . 4 Fire 88 | . 46 27 15 Melee . | . . . . Ram 1 | . 1 . . Kick . | . . . . Crush . | . . . . Escape Stasis . | . . . . Rewire 2 | . . 2 . Trap . | . . . . Miscellaneous . | . . . . Route ------- -11/Scrapyard -10/Materials (discovered 6 exits: [*Mat x3] / *Min x2 / [*Sub]) -10/Mines (discovered 3 exits: [*Mat x2] / [*Sub]) -10/Subcaves History --------- Turn | Location | Event 7 | -11/Scrapyard | Discovered new exit (range 15) 45 | -11/Scrapyard | Entered Materials 72 | -10/Materials | Identified exit to Mines 311 | -10/Materials | Build established: Mutant 473 | -10/Materials | Discovered new exit (range 12) 583 | -10/Materials | Discovered new exit (range 16) 733 | -10/Materials | Discovered new exit (range 12) 805 | -10/Materials | Discovered new exit (range 11) 969 | -10/Materials | Entered Mines 989 | -10/Mines | Assisted by bots powering up and referring to "LRC-V3" 1064 | -10/Mines | Discovered new exit (range 15) 1260 | -10/Mines | Lost 4 allies 1334 | -10/Mines | Core integrity fell below 50% 1456 | -10/Mines | Discovered new exit (range 8) 1636 | -10/Mines | Found the Drone Emporium 1651 | -10/Mines | Found Prototype Device 1667 | -10/Mines | Identified Sensor Drone Bay 1790 | -10/Mines | Met a Derelict who couldn't figure out how to use a Trap Extractor 1967 | -10/Mines | Learned Materials terminal intel 2243 | -10/Mines | Learned Materials terminal intel 2606 | -10/Mines | Discovered new exit (range 5) 2619 | -10/Mines | Entered Subcaves 2766 | -10/Subcaves | Core integrity fell below 20% 2935 | -10/Subcaves | Learned location of 1 exit from Materials 3134 | -10/Subcaves | Disturbed a concealed Subdweller 3155 | -10/Subcaves | Destroyed by AJ-YEC(R) with Subdweller Laser Last Messages --------------- 02763_ DV-XOS(R) knocked back. 02766_ XZ-PGW(R) destroyed. 02769_ DV-XOS(R) destroyed. 02772_ Acquired 24 matter. 02774_ Acquired 25 matter. 02775_ 05-S52(O) collects matter. 02795_ 05-S52(O) puts together Mak. Light Armor Plating. 02795_ 05-S52(O) collects matter. 5T-MWD(R) emerges from concealment. 02935_ Acquired derelict log, extracted data. Data stored: Materials exits (x1). 02972_ Destroyed Lgt. Assault Rifle. 02972_ S-10 Pest destroyed. 03084_ Acquired 13 matter. 03106_ Dropped Lgt. Cannon. 03106_ Acquired Sub. Monowheel. 03116_ Dropped Sub. Monowheel. 03118_ Dropped Aluminum Leg. 03118_ 05-S52(O) collects matter. 03119_ Acquired Sub. Monowheel. Map ----- +----------------------------------------------------+ | ???????????????????????????## #?????????????? | | ????????????????????????????# ##?????????????? | | ????????????????????????????# #??????????????? | | ???????????????????????????## #??????????????? | | ??????????????????????????## #??????????????? | | ??????????????????????????# #??????????????? | | ??????????????????????????# ##?????????????? | | ??????????????????????##?### #?????????????? | | ?????????????????????# # ## #???????????? | | ?????????????? ## #???????????? | | ??????????????? ## #### # ##?## #???????????? | | ????????????????????# #??#### #???##???????????? | | ??????????????????### ###### ##???????????????? | | ??????????????????# #???????????????? | | ?????????????????## ##???????????????? | | ????????????#??### #????????????????? | | ???????????## ?# #????????????????? | | ???????????#$&"##< ##???????????????? | | ????????????? ### ##??????????????? | | ????????????????#R #### ##?????????????? | | ????????????????# #?# #?????????????? | | ????????????????### #?## #?????????????? | | ??????????????????# #??### [ #?????????????? | | ??????????????????# ##?#### &#?????????????? | | ??????????????????##### ### # #?????????????? | | ??????????????????????## @ #?????????????? | | ???????????????????????### # [##?????????????? | | ?????????????????????????## ## #??????????????? | | ????????????????########### # #??????????????? | | ????????????????#"" ## # ### ## #??????????????? | | ##?????????????##"" ! " #??????????????? | | # ##??????????##"""*] "! ="" #??????????????? | | ##???????### * # #""" ##??????????????? | | ##??##?##"" ###!###"""## #???????????????? | | ##?# ## % #### "### #### #??????????????? | | #?# % ""####?? #??????????????? | | #?# " """"" "" #???? ##??????????????? | | #?# """"# "" # ## ###???????????????? | | # ##### ""##### "" #?????????????????? | | # #### ""##??# "" # ###?????????????????? | | """#??## "" ##?????????????????????? | | ##"""#???#######??????????????????????? | | #####%" #????????????????????????????????? | | ##???# ???????????????????????????????? | | ###????# ??????????????????????????????? | | ######???????### #?????????????????????????????? | | ????????????????###??????????????????????????????? | | ?????????????????????????????????????????????????? | | ?????????????????????????????????????????????????? | | ?????????????????????????????????????????????????? | +----------------------------------------------------+ Best States ------------- Heat Dissipation 35 Energy Generation 10 Energy Capacity 250 Matter Stores 300 Matter Capacity 300 Sight Range 16 Terrain Scan Density 10 Armor Coverage 150 Evasion (%) 42 Targeting Accuracy 5 Item Schematics ----------------- None Robot Schematics ------------------ None Fabricated ------------ Nothing Alien Tech Used ----------------- None Achievements -------------- None Challenges ------------ None Game ------ Seed ScatterDisposableRay Manual? 0 Play Time 00:24:28 Cumulative 155.4 hours Start 2024.03.13 @ 15:39:35 End 2024.03.13 @ 16:12:41 Sessions 1 Manual Loads 0 Difficulty Rogue Special Mode None Game No. 106 Rogue 94 Adventurer 12 Explorer 0 Win Type - Total 1 Types 1/0/0/0/0/0/0/0/0 Lore% 23 Gallery% 38 Achievement% 30 Wizard Run 0 Options --------- Layout 1 ASCII 0 Keyboard 0 Movement Mouse Keybinds 0 Fullscreen 1 Font 32/SmallcapsGlow Map View 77x35 Zoom Use 0% Tactical HUD 1 Map Filters NONE Filters NONE Steam 1 RUN: d1b6849b-aba2-4e86-b2e2-97935e095f70